bitfinex/quotes_BTCUSD_20230114
["timestamp","ask_amount","ask_price","bid_price","bid_amount"]
[1673691373046,0.00816545,20474.0,20473.0,3.84823719]
[1673691373270,0.00816545,20474.0,20473.0,3.64317275]
[1673691373506,0.00816545,20474.0,20473.0,3.64317315]
[1673691373746,0.00816545,20474.0,20473.0,4.51527315]
[1673691374243,0.07940551,20483.0,20474.0,0.10816]
[1673691374505,0.43639768,20485.0,20474.0,0.10816]
[1673691374506,0.00097752,20481.0,20477.0,2.09944289]
[1673691374737,0.00097752,20481.0,20480.0,0.976542]
[1673691374999,0.14548885,20485.0,20480.0,0.976542]
[1673691375000,0.14548885,20485.0,20480.0,2.16114364]
[1673691375248,0.22777231,20486.0,20481.0,0.87942407]
[1673691375249,0.00953904,20486.0,20481.0,0.87942407]
[1673691375502,0.00096219,20485.0,20483.0,0.0796]
[1673691375782,0.00953904,20486.0,20484.0,1.484432]
[1673691376026,0.00953904,20486.0,20485.0,0.3]
[1673691376256,0.00953904,20486.0,20485.0,0.808036]
[1673691376491,0.00953904,20486.0,20485.0,0.608036]
[1673691376972,0.00953904,20486.0,20485.0,0.508036]
[1673691377216,0.00953904,20486.0,20485.0,0.66600816]
[1673691377473,0.00953904,20486.0,20485.0,0.508036]
[1673691377755,0.04156675,20486.0,20483.0,0.63145868]
[1673691377977,0.04156675,20486.0,20481.0,0.488445]
[1673691377978,0.04156675,20486.0,20481.0,0.68904988]
[1673691378238,0.00953904,20486.0,20485.0,0.14]
[1673691378461,0.65647704,20486.0,20480.0,0.63941229]
[1673691378717,0.0796,20484.0,20480.0,0.63941229]
[1673691378944,0.0796,20484.0,20483.0,0.139]
[1673691379421,0.0796,20484.0,20481.0,0.19706057]
[1673691379913,0.0796,20484.0,20479.0,0.488283]
[1673691380160,0.02895092,20483.0,20479.0,0.488283]
[1673691380687,0.0796,20484.0,20478.0,0.15608315]
[1673691380688,0.0796,20482.0,20478.0,0.15608315]
[1673691380926,0.0796,20482.0,20481.0,0.082]
[1673691381157,0.0796,20482.0,20478.0,0.15608315]
[1673691381394,0.0796,20482.0,20479.0,0.14]
[1673691381668,0.489212,20483.0,20479.0,0.33536253]
[1673691381669,0.11224025,20483.0,20479.0,0.33536253]
[1673691381884,0.001,20482.0,20480.0,0.19072595]
[1673691382119,0.03324025,20483.0,20480.0,0.19072595]
[1673691382120,0.00096683,20484.0,20481.0,0.019892]
[1673691382355,0.00096683,20484.0,20483.0,0.1]
[1673691382587,0.00953904,20486.0,20483.0,0.11988]
[1673691382829,0.00953904,20486.0,20485.0,0.019875]
[1673691383086,0.00953904,20486.0,20485.0,0.21060095]
[1673691383312,0.00953904,20486.0,20483.0,0.67601041]
[1673691383555,0.00953904,20486.0,20484.0,0.019876]
[1673691383787,0.00953904,20486.0,20485.0,0.030874]
[1673691384022,0.02753904,20486.0,20485.0,0.05758]
[1673691384264,0.00953904,20486.0,20485.0,0.04658]
[1673691384536,0.02753904,20486.0,20485.0,0.04658]
[1673691385012,0.04553904,20486.0,20485.0,0.05758]
[1673691385250,0.04553904,20486.0,20485.0,0.17498193]
[1673691385484,0.04553904,20486.0,20485.0,0.011]
[1673691385749,0.97365035,20486.0,20485.0,0.011]
[1673691385978,1.23537204,20486.0,20485.0,0.011]
[1673691386274,1.33537204,20486.0,20485.0,0.011]
[1673691386502,1.25647204,20486.0,20485.0,0.011]
[1673691386992,1.29618472,20486.0,20485.0,0.011]
[1673691387230,0.89618472,20486.0,20485.0,0.011]
[1673691387483,0.08525172,20486.0,20485.0,0.011]
[1673691387710,0.40804672,20486.0,20485.0,0.011]
[1673691388453,0.08525172,20486.0,20485.0,0.011]
[1673691388681,0.04553904,20486.0,20485.0,0.05758]
[1673691388948,0.04553904,20486.0,20485.0,0.25542195]
[1673691389174,0.04553904,20486.0,20485.0,0.23554995]
[1673691389414,0.04553904,20486.0,20485.0,0.011]
[1673691389415,0.07727339,20486.0,20485.0,0.011]
[1673691393136,0.66717704,20486.0,20485.0,0.011]
[1673691393392,0.98997204,20486.0,20485.0,0.011]
[1673691393630,1.28997204,20486.0,20485.0,0.011]
[1673691393865,0.01092224,20484.0,20478.0,0.19497022]
[1673691394116,0.1,20482.0,20478.0,0.01157806]
[1673691394360,0.1325,20480.0,20478.0,0.01157806]
[1673691394584,0.322795,20479.0,20478.0,0.01157806]
[1673691394831,0.1325,20480.0,20478.0,0.20124977]
[1673691395302,0.620785,20480.0,20478.0,0.01157806]
[1673691395545,0.620785,20480.0,20478.0,0.12057806]
[1673691395546,0.322795,20479.0,20478.0,0.12057806]
[1673691395775,0.322795,20479.0,20478.0,0.01157806]
[1673691396040,0.36120286,20479.0,20478.0,0.01157806]
[1673691396288,0.03840786,20479.0,20478.0,0.03957806]
[1673691396513,0.03840786,20479.0,20478.0,0.01157806]
[1673691396737,0.42820286,20479.0,20478.0,0.01557806]
[1673691398411,0.52820286,20479.0,20478.0,0.01557806]
[1673691398649,1.04578628,20479.0,20478.0,0.01557806]
[1673691399112,1.0105,20479.0,20478.0,0.01557806]
[1673691399611,0.98079246,20479.0,20478.0,0.01157806]
[1673691399873,1.11679246,20479.0,20478.0,0.01457806]
[1673691400592,1.3795,20479.0,20478.0,0.01457806]
[1673691400854,1.4795,20479.0,20478.0,0.01457806]
[1673691401118,1.3795,20479.0,20478.0,0.01457806]
[1673691401341,1.41563539,20479.0,20478.0,0.01457806]
[1673691401572,1.3795,20479.0,20478.0,0.01457806]
[1673691401811,1.55748118,20479.0,20478.0,0.01457806]
[1673691402041,1.4795,20479.0,20478.0,0.01457806]
[1673691402536,1.6118,20479.0,20478.0,0.01457806]
[1673691402762,2.08900169,20479.0,20478.0,0.01457806]
[1673691404154,1.24550334,20479.0,20478.0,0.01457806]
[1673691405346,0.98080334,20479.0,20478.0,0.01457806]
[1673691408465,0.136,20479.0,20478.0,0.01457806]
[1673691408711,0.136,20479.0,20478.0,0.17459834]
[1673691409414,0.136,20479.0,20474.0,0.488421]
[1673691409664,0.136,20479.0,20471.0,0.00993683]
[1673691409665,1.32269054,20478.0,20471.0,0.00993683]
[1673691409889,0.76439539,20477.0,20471.0,0.00993683]
[1673691410130,1.83962339,20476.0,20471.0,0.00993683]
[1673691410362,0.322795,20474.0,20471.0,0.00993683]
[1673691410599,0.267,20472.0,20471.0,0.00993683]
[1673691410842,1.178267,20472.0,20471.0,0.00993683]
[1673691411359,1.478267,20472.0,20471.0,0.00993683]
[1673691411600,1.478267,20472.0,20471.0,0.00493683]
[1673691411837,1.51608171,20472.0,20471.0,0.00493683]
[1673691412069,1.11608171,20472.0,20471.0,0.00493683]
[1673691412289,1.24508171,20472.0,20471.0,0.00493683]
[1673691412522,1.11608171,20472.0,20471.0,0.00493683]
[1673691412772,1.24508171,20472.0,20471.0,0.00493683]
[1673691413783,1.34508171,20472.0,20471.0,0.00493683]
[1673691414226,1.84946357,20472.0,20471.0,0.00493683]
[1673691414452,2.00181654,20472.0,20471.0,0.00493683]
[1673691414966,2.00181654,20472.0,20467.0,0.00019]
[1673691414967,1.818e-05,20470.0,20467.0,0.00019]
[1673691415184,0.1324,20468.0,20467.0,0.00019]
[1673691415429,1.043762,20468.0,20467.0,0.00019]
[1673691415914,1.043762,20468.0,20466.0,0.14527333]
[1673691416140,0.333777,20467.0,20466.0,0.14527333]
[1673691416847,0.1324,20467.0,20466.0,0.14527333]
[1673691417077,0.1324,20467.0,20464.0,1.02844284]
[1673691417078,0.455195,20467.0,20464.0,1.02844284]
[1673691417307,0.17090478,20467.0,20464.0,1.02844284]
[1673691418253,0.17090478,20467.0,20465.0,0.16464852]
[1673691419236,0.18490478,20467.0,20464.0,0.85248489]
[1673691419499,0.65949578,20467.0,20464.0,0.85248489]
[1673691419722,0.36371928,20466.0,20464.0,0.85248489]
[1673691419963,0.52954128,20466.0,20464.0,0.85248489]
[1673691420205,0.52954128,20466.0,20464.0,0.01228489]
[1673691420703,0.322795,20465.0,20464.0,0.16815014]
[1673691420947,0.52954128,20466.0,20464.0,0.16815014]
[1673691421190,0.322795,20465.0,20464.0,0.16815014]
[1673691421501,0.53654128,20466.0,20464.0,0.16815014]
[1673691421734,0.52954128,20466.0,20464.0,0.16815014]
[1673691422198,0.58454128,20466.0,20464.0,0.16793949]
[1673691422438,0.055,20466.0,20464.0,0.20280019]
[1673691422722,0.055,20466.0,20465.0,0.19922595]
[1673691422948,0.055,20466.0,20465.0,0.128452]
[1673691423650,0.055,20466.0,20465.0,0.917091]
[1673691423903,0.488395,20476.0,20465.0,0.917091]
[1673691423904,0.37685965,20475.0,20466.0,0.28549681]
[1673691424126,0.00100079,20470.0,20467.0,2.11794195]
[1673691424361,1.818e-05,20470.0,20468.0,0.019939]
[1673691424603,1.818e-05,20470.0,20469.0,0.05508]
[1673691424844,1.818e-05,20470.0,20469.0,0.019936]
[1673691424845,0.0433509,20470.0,20469.0,0.019936]
[1673691425099,0.0323509,20470.0,20468.0,0.16449159]
[1673691425316,0.01201818,20470.0,20468.0,0.22449159]
[1673691425546,0.01201818,20470.0,20469.0,0.019936]
[1673691425547,1.818e-05,20470.0,20469.0,0.019936]
[1673691425776,1.818e-05,20470.0,20469.0,0.06]
[1673691426012,0.01201818,20470.0,20468.0,0.16449159]
[1673691426241,1.818e-05,20470.0,20469.0,0.22079285]
[1673691426476,0.01201818,20470.0,20469.0,0.22079285]
[1673691426730,0.01201818,20470.0,20469.0,0.20085785]
[1673691427219,1.818e-05,20470.0,20469.0,0.20085785]
[1673691427445,1.818e-05,20470.0,20469.0,0.4505838]
[1673691427446,0.01301818,20470.0,20469.0,0.4505838]
[1673691427665,0.01301818,20470.0,20469.0,0.508478]
[1673691427917,0.01301818,20470.0,20466.0,0.05299681]
[1673691427918,0.50321987,20470.0,20466.0,0.05299681]
[1673691428151,0.50321987,20470.0,20464.0,0.01207424]
[1673691428152,0.47720169,20467.0,20464.0,0.01207424]
[1673691428392,0.15032199,20469.0,20464.0,0.01207424]
[1673691428393,0.47720169,20466.0,20464.0,0.01207424]
[1673691428622,1.77728369,20465.0,20464.0,0.01207424]
[1673691428849,2.04428369,20465.0,20464.0,0.01207424]
[1673691429124,1.61577531,20465.0,20464.0,0.01207424]
[1673691429356,1.433582,20465.0,20464.0,0.01207424]
[1673691429608,0.811443,20465.0,20464.0,0.01207424]
[1673691430808,0.322804,20465.0,20464.0,0.20280019]
[1673691431039,0.136,20465.0,20464.0,0.20280019]
[1673691431293,0.136,20465.0,20464.0,0.02057424]
[1673691431605,0.136,20465.0,20464.0,0.18297039]
[1673691431762,0.03073982,20469.0,20464.0,0.02057424]
[1673691431985,0.03073982,20469.0,20465.0,0.19072595]
[1673691431986,0.00095418,20469.0,20465.0,0.19072595]
[1673691432213,0.00095418,20469.0,20466.0,0.19072595]
[1673691432912,0.00095418,20469.0,20467.0,0.14096206]
[1673691433394,1.818e-05,20470.0,20467.0,0.14096206]
[1673691433625,0.52164155,20470.0,20467.0,0.14096206]
[1673691433863,0.1335,20468.0,20467.0,0.011]
[1673691434100,1.47372648,20468.0,20467.0,0.011]
[1673691434334,1.733438,20468.0,20464.0,0.01207424]
[1673691434572,1.21515649,20467.0,20464.0,0.01207424]
[1673691434797,1.888649,20466.0,20464.0,0.01207424]
[1673691435046,0.98848269,20465.0,20464.0,0.01207424]
[1673691435277,2.10264666,20465.0,20464.0,0.01207424]
[1673691435523,0.00066006,20463.0,20461.0,0.01260795]
[1673691435776,2.021134,20462.0,20461.0,0.01260795]
[1673691436723,2.157134,20462.0,20461.0,0.01360795]
[1673691437422,2.021134,20462.0,20461.0,0.01260795]
[1673691437649,2.321134,20462.0,20461.0,0.01260795]
[1673691437892,2.457134,20462.0,20461.0,0.01360795]
[1673691438147,2.08868841,20462.0,20461.0,0.01360795]
[1673691438877,2.38868841,20462.0,20461.0,0.01360795]
[1673691439342,2.08868841,20462.0,20461.0,0.01360795]
[1673691441934,2.057134,20462.0,20461.0,0.01360795]
[1673691442201,3.31475207,20462.0,20461.0,0.01360795]
[1673691442702,3.66475207,20462.0,20461.0,0.01360795]
[1673691443173,3.52875207,20462.0,20461.0,0.01260795]
[1673691443415,3.3787426,20462.0,20461.0,0.01360795]
[1673691443647,3.33961569,20462.0,20461.0,0.01360795]
[1673691443880,2.98961569,20462.0,20461.0,0.01360795]
[1673691444116,3.02565743,20462.0,20461.0,0.01360795]
[1673691444338,2.98961569,20462.0,20461.0,0.01360795]
[1673691444872,3.00521113,20462.0,20461.0,0.01360795]
[1673691445132,2.87291113,20462.0,20461.0,0.01360795]
[1673691446089,3.24986061,20462.0,20461.0,0.01360795]
[1673691446346,3.70866675,20462.0,20461.0,0.01360795]
[1673691446574,0.00097352,20460.0,20459.0,0.00993683]
[1673691446815,2.45443021,20460.0,20459.0,0.00993683]
[1673691447090,3.08062591,20460.0,20459.0,0.00993683]
[1673691447330,3.08032599,20460.0,20459.0,0.00993683]
[1673691447556,2.89043021,20460.0,20459.0,0.01093683]
[1673691448043,3.21611041,20460.0,20459.0,0.01093683]
[1673691448273,3.21609813,20460.0,20459.0,0.01093683]
[1673691448526,2.59043021,20460.0,20459.0,0.01093683]
[1673691448787,2.56745021,20460.0,20459.0,0.01093683]
[1673691449510,2.66876252,20460.0,20459.0,0.01093683]
[1673691449747,2.56745021,20460.0,20459.0,0.01093683]
[1673691449999,2.56745021,20460.0,20457.0,0.01228489]
[1673691450000,0.1,20459.0,20457.0,0.00678116]
[1673691450250,2.49912369,20458.0,20457.0,0.00678116]
[1673691450501,2.49912369,20458.0,20454.0,0.01298267]
[1673691450502,8e-05,20457.0,20454.0,0.01298267]
[1673691450734,0.322804,20454.0,20453.0,0.00335815]
[1673691450969,3.15560969,20454.0,20453.0,5.815e-05]
[1673691451215,2.678408,20454.0,20453.0,5.815e-05]
[1673691451455,0.1,20453.0,20452.0,0.01327396]
[1673691451697,0.1,20452.0,20449.0,0.00019]
[1673691451937,0.2668,20450.0,20449.0,0.00019]
[1673691452247,1.75429969,20450.0,20449.0,0.00019]
[1673691452479,1.72099969,20450.0,20449.0,0.00019]
[1673691452959,1.42099969,20450.0,20449.0,0.00019]
[1673691453198,1.85399969,20450.0,20449.0,0.00019]
[1673691453444,1.376798,20450.0,20449.0,0.00019]
[1673691453689,1.376798,20450.0,20448.0,0.01426037]
[1673691453690,1.076798,20450.0,20448.0,0.01426037]
[1673691453925,0.455704,20449.0,20448.0,0.01426037]
[1673691454158,2.04295118,20449.0,20448.0,0.01426037]
[1673691454640,0.811825,20449.0,20448.0,0.20498632]
[1673691454907,0.838978,20451.0,20448.0,0.17186586]
[1673691455158,0.061,20450.0,20448.0,0.36259181]
[1673691455390,0.838978,20451.0,20448.0,0.1633841]
[1673691455633,0.061,20449.0,20448.0,0.1633841]
[1673691455877,0.87573769,20451.0,20448.0,0.1633841]
[1673691455878,0.52573769,20451.0,20448.0,0.1633841]
[1673691456107,6e-05,20449.0,20448.0,0.1633841]
[1673691456582,0.06106,20449.0,20448.0,0.20498632]
[1673691456827,0.00098866,20454.0,20449.0,0.1]
[1673691457069,0.00098866,20454.0,20450.0,0.19922595]
[1673691457331,0.00098866,20454.0,20451.0,0.19072595]
[1673691458035,0.00098866,20454.0,20450.0,0.897496]
[1673691458279,0.02888119,20456.0,20450.0,1.08822195]
[1673691458522,0.02888119,20456.0,20452.0,0.1]
[1673691458787,0.02888119,20456.0,20452.0,0.29072595]
[1673691459269,0.04088119,20456.0,20452.0,0.19072595]
[1673691459502,0.03450681,20456.0,20453.0,0.19406986]
[1673691459792,0.59616661,20456.0,20452.0,0.046]
[1673691459989,0.80000569,20455.0,20452.0,0.046]
[1673691460235,0.02298,20453.0,20452.0,0.046]
[1673691460474,0.445784,20453.0,20452.0,0.046]
[1673691460717,0.00275199,20451.0,20450.0,0.00019]
[1673691460949,2.26967668,20451.0,20450.0,0.00019]
[1673691461188,2.70317668,20451.0,20448.0,0.01426037]
[1673691461452,2.70317668,20451.0,20448.0,0.35880627]
[1673691461453,0.221301,20450.0,20448.0,0.35880627]
[1673691461722,0.322804,20449.0,20448.0,0.01426037]
[1673691461958,1.03569799,20451.0,20448.0,0.01426037]
[1673691461959,0.49172499,20451.0,20448.0,0.01426037]
[1673691462215,0.03928927,20449.0,20448.0,0.01426037]
[1673691462686,0.52406054,20451.0,20448.0,0.16319005]
[1673691463169,0.00275199,20451.0,20449.0,0.19072595]
[1673691463398,0.00275199,20451.0,20448.0,0.01426037]
[1673691463399,0.00275199,20451.0,20450.0,0.1]
[1673691463945,0.00275199,20451.0,20449.0,1.02424267]
[1673691464450,0.08175199,20451.0,20449.0,1.02424267]
[1673691464698,0.00275199,20451.0,20449.0,1.02424267]
[1673691464940,0.01875199,20451.0,20449.0,1.02424267]
[1673691465211,0.00275199,20451.0,20450.0,0.17121592]
[1673691465450,0.01975199,20451.0,20450.0,0.17121592]
[1673691466690,0.00275199,20451.0,20450.0,0.17121592]
[1673691466929,0.01575199,20451.0,20450.0,0.18721592]
[1673691471575,0.01575199,20451.0,20450.0,0.08721592]
[1673691471815,0.01575199,20451.0,20450.0,0.07121592]
[1673691472063,0.00275199,20451.0,20450.0,0.07321592]
[1673691472299,0.13075199,20451.0,20450.0,0.07321592]
[1673691472791,0.13075199,20451.0,20450.0,0.23930595]
[1673691473042,0.13075199,20451.0,20450.0,0.86357137]
[1673691473280,0.13075199,20451.0,20450.0,0.18599437]
[1673691474244,0.00275199,20451.0,20450.0,0.18399437]
[1673691474484,0.01675199,20451.0,20450.0,0.21399437]
[1673691474719,0.00275199,20451.0,20450.0,0.18399437]
[1673691474950,0.00775199,20451.0,20450.0,0.20199437]
[1673691475239,0.00275199,20451.0,20450.0,0.18399437]
[1673691475491,0.00775199,20451.0,20450.0,0.20199437]
[1673691475972,0.00275199,20451.0,20450.0,0.18399437]
[1673691476943,0.00775199,20451.0,20450.0,0.20199437]
[1673691477184,0.00275199,20451.0,20450.0,0.18399437]
[1673691477420,0.00775199,20451.0,20450.0,0.20199437]
[1673691477693,0.00275199,20451.0,20450.0,0.18399437]
[1673691477930,0.00775199,20451.0,20450.0,0.1265]
[1673691478167,0.00775199,20451.0,20450.0,0.1085]
[1673691478418,0.00275199,20451.0,20450.0,0.597497]
[1673691479627,0.00275199,20451.0,20450.0,0.59756179]
[1673691480103,0.00275199,20451.0,20450.0,0.89756179]
[1673691480607,0.00775199,20451.0,20450.0,0.61556179]
[1673691480842,0.00775199,20451.0,20450.0,1.59362414]
[1673691481082,0.00775199,20451.0,20450.0,0.61556179]
[1673691481318,0.00775199,20451.0,20450.0,1.59362973]
[1673691481828,0.00275199,20451.0,20450.0,1.7632126]
[1673691482060,0.00775199,20451.0,20450.0,0.20558287]
[1673691485431,0.00775199,20451.0,20450.0,0.018]
[1673691485671,0.00775199,20451.0,20450.0,2.7337708]
[1673691485920,0.00775199,20451.0,20450.0,2.58884477]
[1673691486146,0.00775199,20451.0,20450.0,2.88884477]
[1673691486399,0.00775199,20451.0,20450.0,2.72937499]
[1673691486640,0.00775199,20451.0,20450.0,3.02180163]
[1673691486867,0.00775199,20451.0,20450.0,2.72544154]
[1673691486868,0.00275199,20451.0,20450.0,2.72544154]
[1673691487105,0.01575199,20451.0,20450.0,2.77244154]
[1673691487348,0.01575199,20451.0,20450.0,2.4800149]
[1673691487857,0.01575199,20451.0,20450.0,2.62622034]
[1673691488101,0.00275199,20451.0,20450.0,0.65258194]
[1673691488353,0.01575199,20451.0,20450.0,0.21058494]
[1673691488591,0.00275199,20451.0,20450.0,0.16358494]
[1673691488825,0.01575199,20451.0,20450.0,0.21058494]
[1673691489062,0.00275199,20451.0,20450.0,0.16358494]
[1673691489349,0.01575199,20451.0,20450.0,0.21058494]
[1673691490068,0.01575199,20451.0,20450.0,0.047]
[1673691490313,0.01575199,20451.0,20450.0,2.32961632]
[1673691490574,0.01575199,20451.0,20450.0,2.47068968]
[1673691490820,0.00097432,20455.0,20451.0,0.1]
[1673691491067,0.00097432,20455.0,20453.0,0.2327]
[1673691491312,0.00751666,20458.0,20454.0,0.19922595]
[1673691491538,0.00751666,20458.0,20455.0,0.32422595]
[1673691491859,0.00751666,20458.0,20457.0,0.2323]
[1673691492094,0.00751666,20458.0,20457.0,0.43152595]
[1673691492344,0.00751666,20458.0,20457.0,0.72963]
[1673691492574,0.00751666,20458.0,20457.0,0.62963]
[1673691492811,0.00751666,20458.0,20457.0,0.72963]
[1673691493085,0.00751666,20458.0,20457.0,1.03083]
[1673691493086,0.00851666,20458.0,20457.0,1.03083]
[1673691493328,0.00751666,20458.0,20457.0,1.03083]
[1673691493570,0.00751666,20458.0,20457.0,1.17083]
[1673691494782,0.00751666,20458.0,20457.0,2.8279132]
[1673691495010,0.00751666,20458.0,20457.0,2.83393537]
[1673691495271,0.00751666,20458.0,20457.0,1.30293]
[1673691495525,0.00751666,20458.0,20457.0,2.50693414]
[1673691495766,0.00751666,20458.0,20457.0,2.973537]
[1673691495996,0.00751666,20458.0,20457.0,6.82751483]
[1673691496233,0.00751666,20458.0,20457.0,6.97336676]
[1673691496480,0.00751666,20458.0,20457.0,6.6467639]
[1673691496736,0.00751666,20458.0,20457.0,5.66912932]
[1673691497212,0.00751666,20458.0,20457.0,5.30393]
[1673691497445,0.00751666,20458.0,20457.0,4.90393]
[1673691497691,0.00751666,20458.0,20457.0,1.90393]
[1673691498200,0.00751666,20458.0,20457.0,1.89893]
[1673691498432,0.00751666,20458.0,20457.0,2.05958588]
[1673691498679,0.00751666,20458.0,20457.0,0.79298588]
[1673691499649,0.00751666,20458.0,20457.0,0.76233]
[1673691499884,0.00751666,20458.0,20457.0,0.86233]
[1673691500354,0.00751666,20458.0,20457.0,1.17083]
[1673691500593,0.00751666,20458.0,20457.0,1.30303]
[1673691500842,0.00751666,20458.0,20457.0,1.20303]
[1673691501302,0.00751666,20458.0,20457.0,1.38492018]
[1673691501543,0.00751666,20458.0,20457.0,2.20303]
[1673691501773,0.00751666,20458.0,20457.0,2.09989602]
[1673691502485,0.00751666,20458.0,20457.0,1.96639602]
[1673691503950,0.00751666,20458.0,20457.0,1.76953]
[1673691504193,0.00751666,20458.0,20457.0,2.06953]
[1673691505896,0.00751666,20461.0,20458.0,0.100316]
[1673691506131,0.00751666,20461.0,20460.0,0.1323]
[1673691506371,0.00751666,20461.0,20460.0,1.029558]
[1673691506845,0.00751666,20461.0,20460.0,1.162158]
[1673691507077,0.00751666,20461.0,20460.0,1.63935969]
[1673691507581,0.00751666,20461.0,20460.0,1.64935969]
[1673691508060,0.00751666,20461.0,20460.0,5.17493621]
[1673691508360,0.00751666,20461.0,20460.0,5.02593621]
[1673691508592,0.00751666,20461.0,20460.0,5.16493621]
[1673691508836,0.00751666,20461.0,20460.0,4.77835969]
[1673691509296,0.00751666,20461.0,20460.0,5.77835969]
[1673691509771,0.00751666,20461.0,20460.0,5.63935969]
[1673691510021,0.00751666,20461.0,20460.0,5.77835969]
[1673691512001,0.00751666,20461.0,20460.0,5.56256931]
[1673691512269,0.00751666,20461.0,20460.0,4.81196762]
[1673691512487,0.00751666,20461.0,20460.0,1.81196762]
[1673691514417,0.00751666,20461.0,20460.0,1.67296762]
[1673691514681,0.00851666,20461.0,20460.0,1.81196762]
[1673691514917,0.00851666,20461.0,20460.0,1.82046762]
[1673691515633,0.00751666,20461.0,20460.0,1.68146762]
[1673691515881,0.00851666,20461.0,20460.0,1.82246762]
[1673691518012,0.00851666,20461.0,20460.0,1.638258]
[1673691518244,0.00851666,20461.0,20460.0,1.938258]
[1673691518499,0.00851666,20461.0,20460.0,2.10705508]
[1673691518768,0.00851666,20461.0,20460.0,1.80705508]
[1673691520706,0.00851666,20461.0,20460.0,2.10705508]
[1673691520946,0.00851666,20461.0,20460.0,1.938258]
[1673691522339,0.00851666,20461.0,20460.0,2.11689737]
[1673691523042,0.00851666,20461.0,20460.0,2.08828931]
[1673691523490,0.00851666,20461.0,20460.0,1.78828931]
[1673691524213,0.00851666,20461.0,20460.0,1.77978931]
[1673691525129,0.00851666,20461.0,20460.0,2.07978931]
[1673691525364,0.00851666,20461.0,20460.0,1.77978931]
[1673691525595,0.00851666,20461.0,20460.0,1.78828931]
[1673691527036,0.00851666,20461.0,20460.0,1.938258]
[1673691527268,0.00739041,20465.0,20461.0,0.10041584]
[1673691527570,0.00739041,20465.0,20463.0,0.1]
[1673691527812,0.00739041,20465.0,20464.0,0.0085]
[1673691528546,0.01639041,20465.0,20464.0,0.0085]
[1673691528851,0.00739041,20465.0,20464.0,0.17908226]
[1673691529104,0.01639041,20465.0,20464.0,0.18608226]
[1673691529808,0.01639041,20465.0,20464.0,0.28608226]
[1673691530038,0.01639041,20465.0,20464.0,0.67474526]
[1673691531695,0.01639041,20465.0,20464.0,0.007]
[1673691531926,0.11736403,20465.0,20464.0,0.007]
[1673691532159,0.24986403,20465.0,20464.0,0.007]
[1673691532390,0.57266803,20465.0,20464.0,0.007]
[1673691532620,1.20679588,20465.0,20464.0,0.007]
[1673691533157,0.14889041,20465.0,20464.0,0.007]
[1673691533915,0.47169441,20465.0,20464.0,0.007]
[1673691534122,0.61242554,20465.0,20464.0,0.007]
[1673691535837,0.61142554,20465.0,20464.0,0.007]
[1673691536077,0.95933341,20465.0,20464.0,0.007]
[1673691536324,1.56285444,20465.0,20464.0,0.007]
[1673691536573,1.55655553,20465.0,20464.0,0.007]
[1673691537520,1.55936949,20465.0,20464.0,0.007]
[1673691537763,1.34113622,20465.0,20464.0,0.007]
[1673691537994,1.55936949,20465.0,20464.0,0.007]
[1673691538991,1.34113622,20465.0,20464.0,0.007]
[1673691540970,1.23453622,20465.0,20464.0,0.007]
[1673691541209,1.08904737,20465.0,20464.0,0.007]
[1673691541462,0.52070837,20465.0,20464.0,0.007]
[1673691541729,0.19790437,20465.0,20464.0,0.007]
[1673691541977,0.09509041,20465.0,20464.0,0.20287904]
[1673691543079,0.09409041,20465.0,20464.0,0.20287904]
[1673691543339,0.22426377,20465.0,20464.0,0.007]
[1673691543581,0.54706777,20465.0,20464.0,0.007]
[1673691544127,0.69255662,20465.0,20464.0,0.007]
[1673691544593,1.78654448,20465.0,20464.0,0.007]
[1673691544834,0.1,20464.0,20461.0,0.00041584]
[1673691545074,0.65600566,20462.0,20461.0,0.00041584]
[1673691545315,2.31356406,20462.0,20461.0,0.00041584]
[1673691545568,2.61356406,20462.0,20461.0,0.00041584]
[1673691545814,2.9128584,20462.0,20461.0,0.05341584]
[1673691546354,3.57826582,20462.0,20461.0,1.584e-05]
[1673691546677,3.57826582,20462.0,20458.0,0.000316]
[1673691546678,3.93666582,20462.0,20458.0,0.000316]
[1673691546885,0.36413351,20459.0,20458.0,0.000316]
[1673691547126,3.43666049,20459.0,20458.0,0.000316]
[1673691547386,3.5823139,20459.0,20458.0,0.000316]
[1673691547637,3.29100709,20459.0,20458.0,0.000316]
[1673691547890,3.21810716,20459.0,20458.0,0.000316]
[1673691548126,0.1,20458.0,20451.0,0.24585193]
[1673691548372,0.0792,20453.0,20451.0,0.33557513]
[1673691549108,0.0792,20453.0,20451.0,0.1897232]
[1673691549596,0.0797,20452.0,20450.0,0.01331933]
[1673691549838,0.0797,20451.0,20450.0,0.20616165]
[1673691550087,0.0792,20452.0,20450.0,0.01331933]
[1673691550332,0.014,20453.0,20450.0,0.21356766]
[1673691550583,0.10905951,20454.0,20450.0,0.31356766]
[1673691550824,0.10905951,20454.0,20451.0,0.0085]
[1673691550825,0.017,20452.0,20451.0,0.0085]
[1673691551062,0.017,20452.0,20451.0,0.597473]
[1673691551305,0.034,20452.0,20451.0,0.597473]
[1673691551563,0.14830269,20455.0,20451.0,0.597473]
[1673691551832,0.14830269,20455.0,20451.0,1.08819895]
[1673691552079,0.017,20454.0,20451.0,0.78819895]
[1673691552319,0.017,20454.0,20451.0,0.497473]
[1673691552566,0.12540037,20454.0,20451.0,0.497473]
[1673691553059,0.12105636,20454.0,20452.0,0.17062827]
[1673691553827,0.13105636,20454.0,20452.0,0.17062827]
[1673691554072,0.13105636,20454.0,20450.0,0.50231333]
[1673691554073,0.18619881,20453.0,20450.0,0.01331933]
[1673691554314,0.0797,20452.0,20450.0,0.01331933]
[1673691554545,0.0797,20452.0,20449.0,0.01103194]
[1673691554782,0.1797,20452.0,20449.0,0.01103194]
[1673691555019,0.24589138,20452.0,20449.0,0.01103194]
[1673691555270,0.0797,20452.0,20449.0,0.01103194]
[1673691555508,0.17666155,20451.0,20448.0,0.00019]
[1673691555769,0.17666155,20451.0,20448.0,0.16700146]
[1673691556260,0.00118362,20454.0,20448.0,0.19922595]
[1673691556496,0.00118362,20454.0,20449.0,0.29072595]
[1673691556497,0.01,20452.0,20449.0,0.29072595]
[1673691556740,0.00118362,20454.0,20450.0,0.16219509]
[1673691556741,0.18121975,20453.0,20450.0,0.16219509]
[1673691557005,0.01,20451.0,20450.0,0.16219509]
[1673691557268,0.01,20451.0,20450.0,0.15369509]
[1673691557518,0.18121975,20453.0,20450.0,0.15369509]
[1673691558034,0.19621975,20453.0,20450.0,0.15369509]
[1673691558517,0.14142453,20452.0,20450.0,0.15369509]
[1673691559016,0.096,20451.0,20450.0,0.15369509]
[1673691559258,0.14142453,20452.0,20450.0,0.15369509]